{"text_format":"1","workbook":"xlsx","n_sheets":3,"sheets":["Table","Final","الاوائل"],"not_rendered":{"charts":0,"images":2,"macros":1,"external_links":1,"defined_names":6,"comments":0,"pivot_tables":0},"unopened":[],"bounds":{"document_bytes":16777216,"sheet_cells":100000,"rows_first":2000,"rows_last":500,"rows_between":2000,"halvings":0,"cell_chars":16384,"cell_head_chars":4096},"cells_cut":0,"cells_raw":0,"read":"whole","date_system":"1900"}

{"sheet":"Table","index":0,"n_rows":100,"n_cols":76,"rows_kept":100,"cut":false,"hidden":false,"merged":[[0,24,0,38],[3,0,4,4],[3,5,4,10],[3,12,4,23],[3,39,4,51],[3,52,4,59],[3,60,4,60],[4,24,4,38],[5,0,9,0],[5,1,9,1],[5,2,9,2],[5,3,9,3],[5,4,5,6],[5,7,5,9],[5,10,5,12],[5,13,5,15],[5,37,5,39],[5,40,5,42],[5,43,5,45],[5,46,5,48],[5,49,5,60],[5,16,5,18],[5,19,5,21],[5,22,5,24],[5,25,5,27],[5,28,5,30],[5,31,5,33],[6,13,8,13],[6,14,8,14],[6,15,8,15],[6,16,8,16],[6,17,8,17],[6,18,8,18],[6,19,8,19],[6,20,8,20],[6,21,8,21],[6,22,8,22],[6,23,8,23],[6,24,8,24],[5,74,6,74],[6,4,9,4],[6,5,9,5],[6,6,9,6],[6,7,8,7],[6,8,8,8],[6,9,8,9],[6,10,8,10],[6,11,8,11],[6,12,8,12],[5,61,9,61],[5,62,9,62],[5,63,9,63],[5,64,9,64],[5,65,9,65],[5,71,6,71],[8,71,9,71],[5,34,5,36],[6,25,8,25],[6,26,8,26],[6,27,8,27],[6,28,8,28],[6,29,8,29],[6,30,8,30],[8,74,9,74],[8,75,9,75],[100,0,100,6],[100,49,100,60],[6,60,9,60],[8,52,9,52],[8,53,9,53],[8,54,9,54],[8,55,9,55],[8,56,9,56],[8,57,9,57],[6,49,9,49],[6,50,9,50],[6,51,9,51],[6,52,7,57],[6,58,9,58],[6,59,9,59],[6,43,8,43],[6,44,8,44],[6,45,8,45],[6,46,8,46],[6,47,8,47],[6,48,8,48],[6,37,8,37],[101,56,101,60],[101,4,101,6],[101,7,101,10],[101,11,101,13],[101,14,101,16],[101,18,101,20],[101,21,101,24],[8,72,9,72],[8,73,9,73],[6,38,8,38],[6,39,8,39],[6,40,8,40],[6,41,8,41],[6,42,8,42],[6,31,8,31],[6,32,8,32],[6,33,8,33],[6,34,8,34],[6,35,8,35],[6,36,8,36],[105,51,105,53],[105,54,105,55],[102,0,103,3],[102,4,102,6],[102,7,102,10],[102,11,102,13],[102,18,102,20],[102,21,102,24],[101,25,101,27],[101,28,101,30],[101,49,101,50],[102,25,102,27],[102,31,104,46],[102,49,102,50],[104,4,104,6],[104,7,104,10],[104,11,104,13],[104,18,104,20],[104,21,104,24],[104,25,104,27],[101,51,101,53],[101,54,101,55],[102,51,102,53],[102,54,102,55],[103,4,103,6],[103,7,103,10],[103,11,103,13],[103,18,103,20],[103,21,103,24],[103,25,103,27],[103,49,103,50],[103,51,103,52],[103,54,103,55],[105,56,105,60],[106,0,106,1],[106,4,106,6],[106,7,106,10],[106,11,106,13],[106,18,106,20],[104,49,104,50],[104,51,104,52],[104,54,104,55],[105,4,105,6],[105,7,105,10],[105,11,105,13],[105,14,105,16],[105,18,105,20],[105,21,105,24],[105,25,105,27],[106,21,106,24],[106,25,106,27],[106,31,106,46],[106,49,106,50],[106,51,106,53],[106,54,106,55],[105,28,105,30],[105,49,105,50]]}
[]
[]
[]
[]
[]
["الرقم المتسلسل","الاســــــــــــــم",null,null,null,null,null,null,null,null,null,null,null,null,null,null,null,null,null,null,null,null,null,null,null,null,null,null,null,null,null,null,null,null,null,null,null,null,null,null,null,null,null,null,null,null,null,null,null,null,null,null,null,null,null,null,null,null,null,null,null,null,null,null,null,null,null,null,null,null,null,"بجانبها اكمالات",null,null,"بجانبها راسب ؟"]
[null,null,null,null,null,null,null,null,null,null,null,null,null,null,null,null,null,null,null,null,null,null,null,null,null,null,null,null,null,null,null,null,null,null,null,null,null,null,null,null,null,null,null,null,null,null,"الفصل الأول","الفصل الثاني","المعدل",null,null,null,null,null,null,null,null,null,"المجموع العام","المعدل العام المئوي","النتيجة السنوية"]
[]
[null,null,null,null,null,null,null,null,null,null,null,null,null,null,null,null,null,null,null,null,null,null,null,null,null,null,null,null,null,null,null,null,null,null,null,null,null,null,null,null,null,null,null,null,null,null,null,null,null,null,null,null,"المادة الدراسية","العلامة","المادة الدراسية","العلامة","المادة الدراسية","العلامة",null,null,null,null,null,null,null,null,null,null,null,null,null,"نتيجة",null,null,"المعدل","الجنس"]
[null,null,null,null,null,null,null,null,null,null,null,null,null,null,null,null,null,null,null,null,null,null,null,null,null,null,null,null,null,null,null,null,null,null,null,null,null,null,null,null,null,null,null,null,null,null,null,{"$f":"AU10","v":0},{"$f":"AU10","v":0}]
[1,"محمد  خالد حسن 1",null,null,null,null,null,145,158,152,191,170,181,116,115,116,103,99,101,147,108,128,256,220,238,75,75,75,95,93,94,72,50,61,45,50,48,70,74,72,null,null,null,null,null,null,null,null,null,null,null,null,"الحاسوب",null,null,null,null,null,null,"","نــــــــــــــاجـــــــــــح",null,null,null,null,null,null,null,null,null,null,"مكمل في مادة : الحاسوب","الحاسوب"]
[2,"محمد  خالد حسن 2",null,null,null,null,null,108,136,122,194,165,180,106,110,108,90,110,100,108,90,99,209,212,211,91,75,83,93,92,93,61,50,56,48,33,41,59,64,62,null,null,null,null,null,null,null,null,null,null,null,null,"الاجتماعيات",null,"الحاسوب",null,null,null,null,"","نــــــــــــــاجـــــــــــح",null,null,null,null,null,null,null,null,null,null,"مكمل في مادتي : الاجتماعيات ، الحاسوب","الاجتماعيات ، الحاسوب"]
[3,"محمد  خالد حسن 3",null,null,null,null,null,100,136,118,196,150,173,135,113,124,100,100,100,102,108,105,221,212,217,77,75,76,95,93,94,57,40,49,47,38,43,50,82,66,null,null,null,null,null,null,null,null,null,null,null,null,"التربية المهنية",null,"الحاسوب",null,null,null,null,"","نــــــــــــــاجـــــــــــح",null,null,null,null,null,null,null,null,null,null,"مكمل في مادتي : التربية المهنية ، الحاسوب","التربية المهنية ، الحاسوب"]
[4,"محمد  خالد حسن 4",null,null,null,null,null,112,112,112,176,159,168,107,110,109,100,100,100,112,120,116,245,207,226,75,75,75,94,94,94,50,50,50,65,41,53,52,64,58,null,null,null,null,null,null,null,null,null,null,null,null,null,null,null,null,null,null,992,55,"نــــــــــــــاجـــــــــــح",null,null,null,null,null,null,null,null,null,null,"نــــــــــــــاجـــــــــــح"]
[5,"محمد  خالد حسن 5",null,null,null,null,null,187,182,185,181,270,226,125,175,150,177,163,170,190,184,187,339,315,327,84,80,82,94,95,95,94,91,93,78,76,77,93,94,94,null,null,null,null,null,null,null,null,null,null,null,null,null,null,null,null,null,null,1509,84,"نــــــــــــــاجـــــــــــح",null,null,null,null,null,null,null,null,null,null,"نــــــــــــــاجـــــــــــح"]
[6,"محمد  خالد حسن 6",null,null,null,null,null,108,143,126,195,150,173,116,108,112,90,110,100,108,108,108,219,205,212,75,75,75,94,94,94,55,35,45,45,33,39,0,67,34,null,null,null,null,null,null,null,null,null,null,null,null,"التربية المهنية",null,"الحاسوب",null,"الثقافة المالية ",null,null,"","",null,null,null,null,null,null,null,null,null,null,"مكمل في مواد : التربية المهنية ، الحاسوب ، الثقافة المالية ","التربية المهنية ، الحاسوب ، الثقافة المالية "]
[7,"محمد  خالد حسن 7",null,null,null,null,null,"-","-","-","-","-","-","-","-","-","-","-","-","-","-","-","-","-","-","-","-","-","-","-","-","-","-","-","-","-","-","-","-","-",null,null,null,null,null,null,null,null,null,null,null,null,null,null,null,null,null,null,0,0,"انقطع",null,null,null,null,null,null,null,null,null,null,"راسب بسبب تجاوز نسبة الغياب المقررة ",null,"متسرب منذ بداية العام الدراسي "]
[8,"محمد  خالد حسن 8",null,null,null,null,null,"-","-","-","-","-","-","-","-","-","-","-","-","-","-","-","-","-","-","-","-","-","-","-","-","-","-","-","-","-","-","-","-","-",null,null,null,null,null,null,null,null,null,null,null,null,null,null,null,null,null,null,0,0,"راسب بسبب تجاوز نسبة الغياب المقررة ",null,null,null,null,null,null,null,null,null,null,"راسب بسبب تجاوز نسبة الغياب المقررة ",null,"متسرب منذ بداية العام الدراسي "]
[9,"محمد  خالد حسن 9",null,null,null,null,null,140,191,166,221,198,210,135,110,123,109,110,110,146,166,156,231,237,234,98,89,94,94,95,95,88,84,86,63,64,64,79,71,75,null,null,null,null,null,null,null,null,null,null,null,null,null,null,null,null,null,null,1224,68,"نــــــــــــــاجـــــــــــح",null,null,null,null,null,null,null,null,null,null,"نــــــــــــــاجـــــــــــح"]
[10,"محمد  خالد حسن 10",null,null,null,null,null,185,195,190,232,260,246,180,175,178,155,154,155,200,196,198,292,311,302,98,100,99,95,94,95,96,100,98,88,90,89,98,98,98,null,null,null,null,null,null,null,null,null,null,null,null,null,null,null,null,null,null,1554,86,"نــــــــــــــاجـــــــــــح",null,null,null,null,null,null,null,null,null,null,"نــــــــــــــاجـــــــــــح"]
[11,"محمد  خالد حسن 11",null,null,null,null,null,"-","-","-","-","-","-","-","-","-","-","-","-","-","-","-","-","-","-","-","-","-","-","-","-","-","-","-","-","-","-","-","-","-",null,null,null,null,null,null,null,null,null,null,null,null,null,null,null,null,null,null,0,0,"راسب بسبب تجاوز نسبة الغياب المقررة ",null,null,null,null,null,null,null,null,null,null,"راسب بسبب تجاوز نسبة الغياب المقررة ",null,"متسرب منذ بداية العام الدراسي "]
[12,"محمد  خالد حسن 12",null,null,null,null,null,96,172,134,154,177,166,94,125,110,85,110,98,87,114,101,200,224,212,94,45,70,96,95,96,61,10,36,59,10,35,70,65,68,null,null,null,null,null,null,null,null,null,null,null,null,"الرياضيات",null,"التربية المهنية",null,"الحاسوب",null,null,"","نــــــــــــــاجـــــــــــح",null,null,null,null,null,null,null,null,null,null,"مكمل في مواد : الرياضيات ، التربية المهنية ، الحاسوب","الرياضيات ، التربية المهنية ، الحاسوب"]
[13,"محمد  خالد حسن 13",null,null,null,null,null,136,156,146,193,205,199,129,115,122,127,112,120,102,116,109,252,238,245,100,75,88,95,93,94,75,70,73,65,56,61,50,72,61,null,null,null,null,null,null,null,null,null,null,null,null,null,null,null,null,null,null,1136,63,"نــــــــــــــاجـــــــــــح",null,null,null,null,null,null,null,null,null,null,"نــــــــــــــاجـــــــــــح"]
[14,"محمد  خالد حسن 14",null,null,null,null,null,155,178,167,215,215,215,132,120,126,100,129,115,149,172,161,275,278,277,92,75,84,96,95,96,80,68,74,74,56,65,91,73,82,null,null,null,null,null,null,null,null,null,null,null,null,null,null,null,null,null,null,1282,71,"نــــــــــــــاجـــــــــــح",null,null,null,null,null,null,null,null,null,null,"نــــــــــــــاجـــــــــــح"]
[15,"محمد  خالد حسن 15",null,null,null,null,null,124,140,132,198,150,174,107,100,104,111,89,100,117,108,113,262,204,233,90,75,83,94,94,94,70,57,64,60,38,49,53,73,63,null,null,null,null,null,null,null,null,null,null,null,null,"الحاسوب",null,null,null,null,null,null,"","نــــــــــــــاجـــــــــــح",null,null,null,null,null,null,null,null,null,null,"مكمل في مادة : الحاسوب","الحاسوب"]
[16,"محمد  خالد حسن 16",null,null,null,null,null,"-","-","-","-","-","-","-","-","-","-","-","-","-","-","-","-","-","-","-","-","-","-","-","-","-","-","-","-","-","-","-","-","-",null,null,null,null,null,null,null,null,null,null,null,null,null,null,null,null,null,null,0,0,"راسب بسبب تجاوز نسبة الغياب المقررة ",null,null,null,null,null,null,null,null,null,null,"راسب بسبب تجاوز نسبة الغياب المقررة ",null,"متسرب منذ بداية العام الدراسي "]
[17,"محمد  خالد حسن 17",null,null,null,null,null,135,187,161,170,220,195,158,166,162,138,119,129,130,156,143,273,249,261,92,95,94,94,93,94,87,80,84,64,63,64,83,74,79,null,null,null,null,null,null,null,null,null,null,null,null,null,null,null,null,null,null,1278,71,"نــــــــــــــاجـــــــــــح",null,null,null,null,null,null,null,null,null,null,"نــــــــــــــاجـــــــــــح"]
[18,"محمد  خالد حسن 18",null,null,null,null,null,105,128,117,169,226,198,113,112,113,90,110,100,108,102,105,215,216,216,77,75,76,95,95,95,74,35,55,57,38,48,54,55,55,null,null,null,null,null,null,null,null,null,null,null,null,"الحاسوب",null,null,null,null,null,null,"","نــــــــــــــاجـــــــــــح",null,null,null,null,null,null,null,null,null,null,"مكمل في مادة : الحاسوب","الحاسوب"]
[19,"محمد  خالد حسن 19",null,null,null,null,null,106,0,53,204,"",102,115,0,58,30,0,15,0,0,0,157,"-",129,75,0,38,0,0,0,53,"-",27,50,0,25,52,0,26,null,null,null,null,null,null,null,null,null,null,null,null,null,null,null,null,null,null,435,24,"راســــــــــــــــــــــــب",null,null,null,null,null,null,null,null,null,null,"راســــــــــــــــــــــــب"]
[20,"محمد  خالد حسن 20",null,null,null,null,null,114,139,127,184,166,175,120,100,110,107,93,100,108,114,111,211,202,207,89,84,87,95,94,95,64,58,61,51,50,51,53,63,58,null,null,null,null,null,null,null,null,null,null,null,null,null,null,null,null,null,null,1000,56,"نــــــــــــــاجـــــــــــح",null,null,null,null,null,null,null,null,null,null,"نــــــــــــــاجـــــــــــح"]
[21,"محمد  خالد حسن 21",null,null,null,null,null,124,162,143,215,200,208,120,105,113,159,118,139,146,138,142,237,250,244,95,75,85,96,94,95,77,68,73,86,58,72,73,63,68,null,null,null,null,null,null,null,null,null,null,null,null,null,null,null,null,null,null,1202,67,"نــــــــــــــاجـــــــــــح",null,null,null,null,null,null,null,null,null,null,"نــــــــــــــاجـــــــــــح"]
[22,"محمد  خالد حسن 22",null,null,null,null,null,161,160,161,198,235,217,114,115,115,140,111,126,133,138,136,263,220,242,89,75,82,95,95,95,82,72,77,61,50,56,82,62,72,null,null,null,null,null,null,null,null,null,null,null,null,null,null,null,null,null,null,1202,67,"نــــــــــــــاجـــــــــــح",null,null,null,null,null,null,null,null,null,null,"نــــــــــــــاجـــــــــــح"]
[23,"محمد  خالد حسن 23",null,null,null,null,null,154,158,156,205,196,201,130,130,130,104,96,100,135,133,134,222,225,224,98,100,99,96,92,94,80,88,84,76,80,78,90,61,76,null,null,null,null,null,null,null,null,null,null,null,null,null,null,null,null,null,null,1183,66,"نــــــــــــــاجـــــــــــح",null,null,null,null,null,null,null,null,null,null,"نــــــــــــــاجـــــــــــح"]
[24,"محمد  خالد حسن 24",null,null,null,null,null,114,146,130,187,160,174,138,115,127,118,103,111,115,126,121,219,213,216,98,100,99,96,95,96,84,75,80,91,85,88,52,76,64,null,null,null,null,null,null,null,null,null,null,null,null,null,null,null,null,null,null,1111,62,"نــــــــــــــاجـــــــــــح",null,null,null,null,null,null,null,null,null,null,"نــــــــــــــاجـــــــــــح"]
[25,"محمد  خالد حسن 25",null,null,null,null,null,188,191,190,204,260,232,180,167,174,197,153,175,191,184,188,315,292,304,75,75,75,96,94,95,80,87,84,73,43,58,90,88,89,null,null,null,null,null,null,null,null,null,null,null,null,null,null,null,null,null,null,1494,83,"نــــــــــــــاجـــــــــــح",null,null,null,null,null,null,null,null,null,null,"نــــــــــــــاجـــــــــــح"]
[26,"محمد  خالد حسن 26",null,null,null,null,null,100,129,115,212,160,186,128,115,122,100,100,100,114,108,111,228,212,220,75,45,60,95,95,95,63,22,43,45,0,23,50,71,61,null,null,null,null,null,null,null,null,null,null,null,null,"التربية المهنية",null,"الحاسوب",null,null,null,null,"","نــــــــــــــاجـــــــــــح",null,null,null,null,null,null,null,null,null,null,"مكمل في مادتي : التربية المهنية ، الحاسوب","التربية المهنية ، الحاسوب"]
[27,"محمد  خالد حسن 27",null,null,null,null,null,103,"-",52,191,"",96,106,0,53,5,"-",3,111,0,56,118,"-",59,75,"-",38,95,"-",47,50,"-",25,53,0,27,54,0,27,null,null,null,null,null,null,null,null,null,null,null,null,null,null,null,null,null,null,398,22,"راســــــــــــــــــــــــب",null,null,null,null,null,null,null,null,null,null,"راســــــــــــــــــــــــب"]
[28,"محمد  خالد حسن 28",null,null,null,null,null,143,191,167,199,214,207,125,155,140,100,111,106,132,120,126,257,232,245,96,100,98,95,95,95,84,85,85,83,80,82,58,70,64,null,null,null,null,null,null,null,null,null,null,null,null,null,null,null,null,null,null,1222,68,"نــــــــــــــاجـــــــــــح",null,null,null,null,null,null,null,null,null,null,"نــــــــــــــاجـــــــــــح"]
[29,"محمد  خالد حسن 29",null,null,null,null,null,101,103,102,196,150,173,107,100,104,90,110,100,104,102,103,203,62,133,90,75,83,94,95,95,60,30,45,50,33,42,50,63,57,null,null,null,null,null,null,null,null,null,null,null,null,"العلوم",null,"التربية المهنية",null,"الحاسوب",null,null,"","نــــــــــــــاجـــــــــــح",null,null,null,null,null,null,null,null,null,null,"مكمل في مواد : العلوم ، التربية المهنية ، الحاسوب","العلوم ، التربية المهنية ، الحاسوب"]
[30,"محمد  خالد حسن 30",null,null,null,null,null,0,0,"-","-","-","-","-","-","-","-","-","-","-","-","-","-","-","-","-","-","-","-","-","-","-","-","-","-","-","-","-","-","-",null,null,null,null,null,null,null,null,null,null,111,null,null,null,null,null,null,null,0,0,"راسب بسبب تجاوز نسبة الغياب المقررة ",null,null,null,null,null,null,null,null,null,null,"راسب بسبب تجاوز نسبة الغياب المقررة ",null,"متسرب منذ بداية العام الدراسي "]
[31,"محمد  خالد حسن 31",null,null,null,null,null,140,163,152,192,197,195,112,125,119,105,130,118,114,102,108,247,210,229,75,80,78,96,93,95,78,80,79,80,58,69,87,86,87,null,null,null,null,null,null,null,null,null,null,null,null,null,null,null,null,null,null,1156,64,"نــــــــــــــاجـــــــــــح",null,null,null,null,null,null,null,null,null,null,"نــــــــــــــاجـــــــــــح"]
[32,"محمد  خالد حسن 32",null,null,null,null,null,109,128,119,186,166,176,141,115,128,90,110,100,102,120,111,251,212,232,75,75,75,96,93,95,60,51,56,45,36,41,59,71,65,null,null,null,null,null,null,null,null,null,null,null,null,"الحاسوب",null,null,null,null,null,null,"","نــــــــــــــاجـــــــــــح",null,null,null,null,null,null,null,null,null,null,"مكمل في مادة : الحاسوب","الحاسوب"]
[33,"محمد  خالد حسن 33",null,null,null,null,null,108,135,122,181,213,197,139,110,125,100,102,101,107,108,108,251,200,226,75,75,75,96,94,95,73,53,63,63,34,49,60,73,67,null,null,null,null,null,null,null,null,null,null,null,null,"الحاسوب",null,null,null,null,null,null,"","نــــــــــــــاجـــــــــــح",null,null,null,null,null,null,null,null,null,null,"مكمل في مادة : الحاسوب","الحاسوب"]
[34,"محمد  خالد حسن 34",null,null,null,null,null,146,171,159,197,190,194,134,125,130,125,130,128,106,126,116,219,214,217,75,75,75,95,94,95,45,50,48,53,50,52,57,66,62,null,null,null,null,null,null,null,null,null,null,null,null,"التربية المهنية",null,null,null,null,null,null,"","نــــــــــــــاجـــــــــــح",null,null,null,null,null,null,null,null,null,null,"مكمل في مادة : التربية المهنية","التربية المهنية"]
[35,"محمد  خالد حسن 35",null,null,null,null,null,152,181,167,175,201,188,138,105,122,105,128,117,155,120,138,251,231,241,100,90,95,95,93,94,100,93,97,83,80,82,76,75,76,null,null,null,null,null,null,null,null,null,null,null,null,null,null,null,null,null,null,1228,68,"نــــــــــــــاجـــــــــــح",null,null,null,null,null,null,null,null,null,null,"نــــــــــــــاجـــــــــــح"]
[36,"محمد  خالد حسن 36",null,null,null,null,null,111,107,109,171,165,168,138,100,119,90,120,105,106,116,111,220,166,193,75,75,75,95,95,95,55,54,55,45,36,41,62,66,64,null,null,null,null,null,null,null,null,null,null,null,null,"العلوم",null,"الحاسوب",null,null,null,null,"","نــــــــــــــاجـــــــــــح",null,null,null,null,null,null,null,null,null,null,"مكمل في مادتي : العلوم ، الحاسوب","العلوم ، الحاسوب"]
[37,"محمد  خالد حسن 37",null,null,null,null,null,107,139,123,180,194,187,139,102,121,100,100,100,102,120,111,251,227,239,98,75,87,95,93,94,80,55,68,53,55,54,50,71,61,null,null,null,null,null,null,null,null,null,null,null,null,null,null,null,null,null,null,1064,59,"نــــــــــــــاجـــــــــــح",null,null,null,null,null,null,null,null,null,null,"نــــــــــــــاجـــــــــــح"]
[38,"محمد  خالد حسن 38",null,null,null,null,null,186,171,179,196,180,188,153,110,132,142,132,137,166,126,146,259,239,249,92,84,88,96,94,95,87,79,83,79,63,71,98,82,90,null,null,null,null,null,null,null,null,null,null,null,null,null,null,null,null,null,null,1275,71,"نــــــــــــــاجـــــــــــح",null,null,null,null,null,null,null,null,null,null,"نــــــــــــــاجـــــــــــح"]
[39,"محمد  خالد حسن 39",null,null,null,null,null,135,157,146,189,175,182,126,110,118,105,133,119,102,138,120,219,247,233,92,84,88,95,95,95,72,56,64,51,50,51,53,56,55,null,null,null,null,null,null,null,null,null,null,null,null,null,null,null,null,null,null,1088,60,"نــــــــــــــاجـــــــــــح",null,null,null,null,null,null,null,null,null,null,"نــــــــــــــاجـــــــــــح"]
[40,"محمد  خالد حسن 40",null,null,null,null,null,105,135,120,192,193,193,112,110,111,105,105,105,108,120,114,257,203,230,78,75,77,95,92,94,67,38,53,45,30,38,61,73,67,null,null,null,null,null,null,null,null,null,null,null,null,"الحاسوب",null,null,null,null,null,null,"","نــــــــــــــاجـــــــــــح",null,null,null,null,null,null,null,null,null,null,"مكمل في مادة : الحاسوب","الحاسوب"]
[41,"محمد  خالد حسن 41",null,null,null,null,null,137,161,149,182,170,176,141,107,124,120,120,120,106,150,128,262,227,245,95,84,90,94,95,95,91,84,88,68,50,59,51,55,53,null,null,null,null,null,null,null,null,null,null,null,null,null,null,null,null,null,null,1142,63,"نــــــــــــــاجـــــــــــح",null,null,null,null,null,null,null,null,null,null,"نــــــــــــــاجـــــــــــح"]
[42,"محمد  خالد حسن 42",null,null,null,null,null,130,158,144,182,192,187,155,102,129,90,110,100,112,102,107,241,224,233,75,71,73,95,95,95,71,40,56,45,28,37,60,71,66,null,null,null,null,null,null,null,null,null,null,null,null,"الحاسوب",null,null,null,null,null,null,"","",null,null,null,null,null,null,null,null,null,null,"مكمل في مادة : الحاسوب","الحاسوب"]
[43,"محمد  خالد حسن 43",null,null,null,null,null,100,143,122,203,164,184,105,100,103,95,109,102,90,108,99,245,203,224,75,75,75,96,93,95,53,55,54,45,36,41,53,67,60,null,null,null,null,null,null,null,null,null,null,null,null,"الاجتماعيات",null,"الحاسوب",null,null,null,null,"","",null,null,null,null,null,null,null,null,null,null,"مكمل في مادتي : الاجتماعيات ، الحاسوب","الاجتماعيات ، الحاسوب"]
[44,"محمد  خالد حسن 44",null,null,null,null,null,188,185,187,178,235,207,189,179,184,160,156,158,158,190,174,276,276,276,82,89,86,94,95,95,84,76,80,65,61,63,91,85,88,null,null,null,null,null,null,null,null,null,null,null,null,null,null,null,null,null,null,1417,79,"نــــــــــــــاجـــــــــــح",null,null,null,null,null,null,null,null,null,null,"نــــــــــــــاجـــــــــــح"]
[45,"محمد  خالد حسن 45",null,null,null,null,null,154,187,171,172,200,186,192,170,181,110,112,111,152,146,149,268,269,269,100,95,98,96,94,95,100,85,93,75,73,74,75,86,81,null,null,null,null,null,null,null,null,null,null,null,null,null,null,null,null,null,null,1315,73,"نــــــــــــــاجـــــــــــح",null,null,null,null,null,null,null,null,null,null,"نــــــــــــــاجـــــــــــح"]
[46,"محمد  خالد حسن 46",null,null,null,null,null,184,181,183,161,230,196,191,170,181,192,190,191,200,172,186,286,306,296,86,75,81,94,95,95,91,73,82,76,51,64,69,83,76,null,null,null,null,null,null,null,null,null,null,null,null,null,null,null,null,null,null,null,1,"نــــــــــــــاجـــــــــــح"]
[47,"محمد  خالد حسن 47",null,null,null,null,null,174,195,185,254,290,272,189,184,187,190,195,193,187,196,192,296,330,313,98,80,89,95,95,95,91,95,93,81,66,74,75,90,83,null,null,null,null,null,null,null,null,null,null,null,null,null,null,null,null,null,null,null,1,"نــــــــــــــاجـــــــــــح"]
[48,"محمد  خالد حسن 48",null,null,null,null,null,179,185,182,247,208,228,192,175,184,183,153,168,181,190,186,279,280,280,97,54,76,95,95,95,83,90,87,78,43,61,87,81,84,null,null,null,null,null,null,null,null,null,null,null,null,null,null,null,null,null,null,null,1,"نــــــــــــــاجـــــــــــح"]
[49,null,null,null,null,null,null,null,null,null,null,null,null,null,null,null,null,null,null,null,null,null,null,null,null,null,null,null,null,null,null,null,null,null,null,null,null,null,null,null,null,null,null,null,null,null,null,null,null,null,null,null,null,null,null,null,null,null,null,""]
[50,null,null,null,null,null,null,null,null,null,null,null,null,null,null,null,null,null,null,null,null,null,null,null,null,null,null,null,null,null,null,null,null,null,null,null,null,null,null,null,null,null,null,null,null,null,null,null,null,null,null,null,null,null,null,null,null,null,null,""]
[51,null,null,null,null,null,null,null,null,null,null,null,null,null,null,null,null,null,null,null,null,null,null,null,null,null,null,null,null,null,null,null,null,null,null,null,null,null,null,null,null,null,null,null,null,null,null,null,null,null,null,null,null,null,null,null,null,null,null,""]
[52,null,null,null,null,null,null,null,null,null,null,null,null,null,null,null,null,null,null,null,null,null,null,null,null,null,null,null,null,null,null,null,null,null,null,null,null,null,null,null,null,null,null,null,null,null,null,null,null,null,null,null,null,null,null,null,null,null,null,""]
[53,null,null,null,null,null,null,null,null,null,null,null,null,null,null,null,null,null,null,null,null,null,null,null,null,null,null,null,null,null,null,null,null,null,null,null,null,null,null,null,null,null,null,null,null,null,null,null,null,null,null,null,null,null,null,null,null,null,null,""]
[54,null,null,null,null,null,null,null,null,null,null,null,null,null,null,null,null,null,null,null,null,null,null,null,null,null,null,null,null,null,null,null,null,null,null,null,null,null,null,null,null,null,null,null,null,null,null,null,null,null,null,null,null,null,null,null,null,null,null,""]
[55,null,null,null,null,null,null,null,null,null,null,null,null,null,null,null,null,null,null,null,null,null,null,null,null,null,null,null,null,null,null,null,null,null,null,null,null,null,null,null,null,null,null,null,null,null,null,null,null,null,null,null,null,null,null,null,null,null,null,""]
[56,null,null,null,null,null,null,null,null,{"$f":"IF(ISBLANK(I66),\"\",IF(ISNUMBER(I66),ROUND((I66+H66)/2,0),\" \"))","v":""},null,null,{"$f":"IF(ISBLANK(L66),\"\",IF(ISNUMBER(L66),ROUND((L66+K66)/2,0),\" \"))","v":""},null,null,{"$f":"IF(ISBLANK(O66),\"\",IF(ISNUMBER(O66),ROUND((O66+N66)/2,0),\" \"))","v":""},null,null,{"$f":"IF(ISBLANK(R66),\"\",IF(ISNUMBER(R66),ROUND((R66+Q66)/2,0),\" \"))","v":""},null,null,{"$f":"IF(ISBLANK(U66),\"\",IF(ISNUMBER(U66),ROUND((U66+T66)/2,0),\" \"))","v":""},null,null,{"$f":"IF(ISBLANK(X66),\"\",IF(ISNUMBER(X66),ROUND((X66+W66)/2,0),\" \"))","v":""},null,null,{"$f":"IF(ISBLANK(AA66),\"\",IF(ISNUMBER(AA66),ROUND((AA66+Z66)/2,0),\" \"))","v":""},null,null,{"$f":"IF(ISBLANK(AD66),\"\",IF(ISNUMBER(AD66),ROUND((AD66+AC66)/2,0),\" \"))","v":""},null,null,{"$f":"IF(ISBLANK(AG66),\"\",IF(ISNUMBER(AG66),ROUND((AG66+AF66)/2,0),\" \"))","v":""},null,null,{"$f":"IF(ISBLANK(AJ66),\"\",IF(ISNUMBER(AJ66),ROUND((AJ66+AI66)/2,0),\" \"))","v":""},null,null,null,null,null,null,null,null,null,null,null,null,null,null,null,null,null,null,null,null,null,null,""]
[57,null,null,null,null,null,null,null,null,{"$f":"IF(ISBLANK(I67),\"\",IF(ISNUMBER(I67),ROUND((I67+H67)/2,0),\" \"))","v":""},null,null,{"$f":"IF(ISBLANK(L67),\"\",IF(ISNUMBER(L67),ROUND((L67+K67)/2,0),\" \"))","v":""},null,null,{"$f":"IF(ISBLANK(O67),\"\",IF(ISNUMBER(O67),ROUND((O67+N67)/2,0),\" \"))","v":""},null,null,{"$f":"IF(ISBLANK(R67),\"\",IF(ISNUMBER(R67),ROUND((R67+Q67)/2,0),\" \"))","v":""},null,null,{"$f":"IF(ISBLANK(U67),\"\",IF(ISNUMBER(U67),ROUND((U67+T67)/2,0),\" \"))","v":""},null,null,{"$f":"IF(ISBLANK(X67),\"\",IF(ISNUMBER(X67),ROUND((X67+W67)/2,0),\" \"))","v":""},null,null,{"$f":"IF(ISBLANK(AA67),\"\",IF(ISNUMBER(AA67),ROUND((AA67+Z67)/2,0),\" \"))","v":""},null,null,{"$f":"IF(ISBLANK(AD67),\"\",IF(ISNUMBER(AD67),ROUND((AD67+AC67)/2,0),\" \"))","v":""},null,null,{"$f":"IF(ISBLANK(AG67),\"\",IF(ISNUMBER(AG67),ROUND((AG67+AF67)/2,0),\" \"))","v":""},null,null,{"$f":"IF(ISBLANK(AJ67),\"\",IF(ISNUMBER(AJ67),ROUND((AJ67+AI67)/2,0),\" \"))","v":""},null,null,null,null,null,null,null,null,null,null,null,null,null,null,null,null,null,null,null,null,null,null,""]
[58,null,null,null,null,null,null,null,null,{"$f":"IF(ISBLANK(I68),\"\",IF(ISNUMBER(I68),ROUND((I68+H68)/2,0),\" \"))","v":""},null,null,{"$f":"IF(ISBLANK(L68),\"\",IF(ISNUMBER(L68),ROUND((L68+K68)/2,0),\" \"))","v":""},null,null,{"$f":"IF(ISBLANK(O68),\"\",IF(ISNUMBER(O68),ROUND((O68+N68)/2,0),\" \"))","v":""},null,null,{"$f":"IF(ISBLANK(R68),\"\",IF(ISNUMBER(R68),ROUND((R68+Q68)/2,0),\" \"))","v":""},null,null,{"$f":"IF(ISBLANK(U68),\"\",IF(ISNUMBER(U68),ROUND((U68+T68)/2,0),\" \"))","v":""},null,null,{"$f":"IF(ISBLANK(X68),\"\",IF(ISNUMBER(X68),ROUND((X68+W68)/2,0),\" \"))","v":""},null,null,{"$f":"IF(ISBLANK(AA68),\"\",IF(ISNUMBER(AA68),ROUND((AA68+Z68)/2,0),\" \"))","v":""},null,null,{"$f":"IF(ISBLANK(AD68),\"\",IF(ISNUMBER(AD68),ROUND((AD68+AC68)/2,0),\" \"))","v":""},null,null,{"$f":"IF(ISBLANK(AG68),\"\",IF(ISNUMBER(AG68),ROUND((AG68+AF68)/2,0),\" \"))","v":""},null,null,{"$f":"IF(ISBLANK(AJ68),\"\",IF(ISNUMBER(AJ68),ROUND((AJ68+AI68)/2,0),\" \"))","v":""},null,null,null,null,null,null,null,null,null,null,null,null,null,null,null,null,null,null,null,null,null,null,""]
[59,null,null,null,null,null,null,null,null,{"$f":"IF(ISBLANK(I69),\"\",IF(ISNUMBER(I69),ROUND((I69+H69)/2,0),\" \"))","v":""},null,null,{"$f":"IF(ISBLANK(L69),\"\",IF(ISNUMBER(L69),ROUND((L69+K69)/2,0),\" \"))","v":""},null,null,{"$f":"IF(ISBLANK(O69),\"\",IF(ISNUMBER(O69),ROUND((O69+N69)/2,0),\" \"))","v":""},null,null,{"$f":"IF(ISBLANK(R69),\"\",IF(ISNUMBER(R69),ROUND((R69+Q69)/2,0),\" \"))","v":""},null,null,{"$f":"IF(ISBLANK(U69),\"\",IF(ISNUMBER(U69),ROUND((U69+T69)/2,0),\" \"))","v":""},null,null,{"$f":"IF(ISBLANK(X69),\"\",IF(ISNUMBER(X69),ROUND((X69+W69)/2,0),\" \"))","v":""},null,null,{"$f":"IF(ISBLANK(AA69),\"\",IF(ISNUMBER(AA69),ROUND((AA69+Z69)/2,0),\" \"))","v":""},null,null,{"$f":"IF(ISBLANK(AD69),\"\",IF(ISNUMBER(AD69),ROUND((AD69+AC69)/2,0),\" \"))","v":""},null,null,{"$f":"IF(ISBLANK(AG69),\"\",IF(ISNUMBER(AG69),ROUND((AG69+AF69)/2,0),\" \"))","v":""},null,null,{"$f":"IF(ISBLANK(AJ69),\"\",IF(ISNUMBER(AJ69),ROUND((AJ69+AI69)/2,0),\" \"))","v":""},null,null,null,null,null,null,null,null,null,null,null,null,null,null,null,null,null,null,null,null,null,null,""]
[60,null,null,null,null,null,null,null,null,null,null,null,null,null,null,null,null,null,null,null,null,null,null,null,null,null,null,null,null,null,null,null,null,null,null,null,null,null,null,null,null,null,null,null,null,null,null,null,null,null,null,null,null,null,null,null,null,null,null,""]
[61,null,null,null,null,null,null,null,null,null,null,null,null,null,null,null,null,null,null,null,null,null,null,null,null,null,null,null,null,null,null,null,null,null,null,null,null,null,null,null,null,null,null,null,null,null,null,null,null,null,null,null,null,null,null,null,null,null,null,""]
[62,null,null,null,null,null,null,null,null,null,null,null,null,null,null,null,null,null,null,null,null,null,null,null,null,null,null,null,null,null,null,null,null,null,null,null,null,null,null,null,null,null,null,null,null,null,null,null,null,null,null,null,null,null,null,null,null,null,null,""]
[63,null,null,null,null,null,null,null,null,null,null,null,null,null,null,null,null,null,null,null,null,null,null,null,null,null,null,null,null,null,null,null,null,null,null,null,null,null,null,null,null,null,null,null,null,null,null,null,null,null,null,null,null,null,null,null,null,null,null,""]
[64,null,null,null,null,null,null,null,null,null,null,null,null,null,null,null,null,null,null,null,null,null,null,null,null,null,null,null,null,null,null,null,null,null,null,null,null,null,null,null,null,null,null,null,null,null,null,null,null,null,null,null,null,null,null,null,null,null,null,""]
[65,null,null,null,null,null,null,null,null,{"$f":"IF(ISBLANK(I75),\"\",IF(ISNUMBER(I75),ROUND((I75+H75)/2,0),\" \"))","v":""},null,null,{"$f":"IF(ISBLANK(L75),\"\",IF(ISNUMBER(L75),ROUND((L75+K75)/2,0),\" \"))","v":""},null,null,{"$f":"IF(ISBLANK(O75),\"\",IF(ISNUMBER(O75),ROUND((O75+N75)/2,0),\" \"))","v":""},null,null,{"$f":"IF(ISBLANK(R75),\"\",IF(ISNUMBER(R75),ROUND((R75+Q75)/2,0),\" \"))","v":""},null,null,{"$f":"IF(ISBLANK(U75),\"\",IF(ISNUMBER(U75),ROUND((U75+T75)/2,0),\" \"))","v":""},null,null,{"$f":"IF(ISBLANK(X75),\"\",IF(ISNUMBER(X75),ROUND((X75+W75)/2,0),\" \"))","v":""},null,null,{"$f":"IF(ISBLANK(AA75),\"\",IF(ISNUMBER(AA75),ROUND((AA75+Z75)/2,0),\" \"))","v":""},null,null,{"$f":"IF(ISBLANK(AD75),\"\",IF(ISNUMBER(AD75),ROUND((AD75+AC75)/2,0),\" \"))","v":""},null,null,{"$f":"IF(ISBLANK(AG75),\"\",IF(ISNUMBER(AG75),ROUND((AG75+AF75)/2,0),\" \"))","v":""},null,null,{"$f":"IF(ISBLANK(AJ75),\"\",IF(ISNUMBER(AJ75),ROUND((AJ75+AI75)/2,0),\" \"))","v":""},null,null,null,null,null,null,null,null,null,null,null,null,null,null,null,null,null,null,null,null,null,null,""]
[66]
[67,null,null,null,null,null,null,null,null,{"$f":"IF(ISBLANK(I77),\"\",IF(ISNUMBER(I77),ROUND((I77+H77)/2,0),\" \"))","v":""},null,null,{"$f":"IF(ISBLANK(L77),\"\",IF(ISNUMBER(L77),ROUND((L77+K77)/2,0),\" \"))","v":""},null,null,{"$f":"IF(ISBLANK(O77),\"\",IF(ISNUMBER(O77),ROUND((O77+N77)/2,0),\" \"))","v":""},null,null,{"$f":"IF(ISBLANK(R77),\"\",IF(ISNUMBER(R77),ROUND((R77+Q77)/2,0),\" \"))","v":""},null,null,{"$f":"IF(ISBLANK(U77),\"\",IF(ISNUMBER(U77),ROUND((U77+T77)/2,0),\" \"))","v":""},null,null,{"$f":"IF(ISBLANK(X77),\"\",IF(ISNUMBER(X77),ROUND((X77+W77)/2,0),\" \"))","v":""},null,null,{"$f":"IF(ISBLANK(AA77),\"\",IF(ISNUMBER(AA77),ROUND((AA77+Z77)/2,0),\" \"))","v":""},null,null,{"$f":"IF(ISBLANK(AD77),\"\",IF(ISNUMBER(AD77),ROUND((AD77+AC77)/2,0),\" \"))","v":""},null,null,{"$f":"IF(ISBLANK(AG77),\"\",IF(ISNUMBER(AG77),ROUND((AG77+AF77)/2,0),\" \"))","v":""},null,null,null,null,null,{"$f":"IF(ISBLANK(AM77),\"\",IF(ISNUMBER(AM77),ROUND((AM77+AL77)/2,0),\" \"))","v":""},null,null,{"$f":"IF(ISBLANK(AP77),\"\",IF(ISNUMBER(AP77),ROUND((AP77+AO77)/2,0),\" \"))","v":""},null,null,{"$f":"IF(ISBLANK(AS77),\"\",IF(ISNUMBER(AS77),ROUND((AS77+AR77)/2,0),\" \"))","v":""},null,null,{"$f":"IF(ISBLANK(AV77),\"\",IF(ISNUMBER(AV77),ROUND((AV77+AU77)/2,0),\" \"))","v":""},null,null,null,null,null,null,null,null,null,null,""]
[68,null,null,null,null,null,null,null,null,"",null,null,"",null,null,"",null,null,"",null,null,"",null,null,"",null,null,"",null,null,"",null,null,"",null,null,null,null,null,"",null,null,"",null,null,"",null,null,"",null,null,null,null,null,null,null,null,null,null,""]
[69,null,null,null,null,null,null,null,null,"",null,null,"",null,null,"",null,null,"",null,null,"",null,null,"",null,null,"",null,null,"",null,null,"",null,null,null,null,null,"",null,null,"",null,null,"",null,null,"",null,null,null,null,null,null,null,null,null,null,""]
[70,null,null,null,null,null,null,null,null,"",null,null,"",null,null,"",null,null,"",null,null,"",null,null,"",null,null,"",null,null,"",null,null,"",null,null,null,null,null,"",null,null,"",null,null,"",null,null,"",null,null,null,null,null,null,null,null,null,null,""]
[71,null,null,null,null,null,null,null,null,"",null,null,"",null,null,"",null,null,"",null,null,"",null,null,"",null,null,"",null,null,"",null,null,"",null,null,null,null,null,"",null,null,"",null,null,"",null,null,"",null,null,null,null,null,null,null,null,null,null,""]
[72,null,null,null,null,null,null,null,null,"",null,null,"",null,null,"",null,null,"",null,null,"",null,null,"",null,null,"",null,null,"",null,null,"",null,null,null,null,null,"",null,null,"",null,null,"",null,null,"",null,null,null,null,null,null,null,null,null,null,""]
[73,null,null,null,null,null,null,null,null,"",null,null,"",null,null,"",null,null,"",null,null,"",null,null,"",null,null,"",null,null,"",null,null,"",null,null,null,null,null,"",null,null,"",null,null,"",null,null,"",null,null,null,null,null,null,null,null,null,null,""]
[74,null,null,null,null,null,null,null,null,"",null,null,"",null,null,"",null,null,"",null,null,"",null,null,"",null,null,"",null,null,"",null,null,"",null,null,null,null,null,"",null,null,"",null,null,"",null,null,"",null,null,null,null,null,null,null,null,null,null,""]
[75,null,null,null,null,null,null,null,null,"",null,null,"",null,null,"",null,null,"",null,null,"",null,null,"",null,null,"",null,null,"",null,null,"",null,null,null,null,null,"",null,null,"",null,null,"",null,null,"",null,null,null,null,null,null,null,null,null,null,""]
[76,null,null,null,null,null,null,null,null,"",null,null,"",null,null,"",null,null,"",null,null,"",null,null,"",null,null,"",null,null,"",null,null,"",null,null,null,null,null,"",null,null,"",null,null,"",null,null,"",null,null,null,null,null,null,null,null,null,null,""]
[77,null,null,null,null,null,null,null,null,"",null,null,"",null,null,"",null,null,"",null,null,"",null,null,"",null,null,"",null,null,"",null,null,"",null,null,null,null,null,"",null,null,"",null,null,"",null,null,"",null,null,null,null,null,null,null,null,null,null,""]
[78,null,null,null,null,null,null,null,null,"",null,null,"",null,null,"",null,null,"",null,null,"",null,null,"",null,null,"",null,null,"",null,null,"",null,null,null,null,null,"",null,null,"",null,null,"",null,null,"",null,null,null,null,null,null,null,null,null,null,""]
[79,null,null,null,null,null,null,null,null,"",null,null,"",null,null,"",null,null,"",null,null,"",null,null,"",null,null,"",null,null,"",null,null,"",null,null,null,null,null,"",null,null,"",null,null,"",null,null,"",null,null,null,null,null,null,null,null,null,null,""]
[80,null,null,null,null,null,null,null,null,"",null,null,"",null,null,"",null,null,"",null,null,"",null,null,"",null,null,"",null,null,"",null,null,"",null,null,null,null,null,"",null,null,"",null,null,"",null,null,"",null,null,null,null,null,null,null,null,null,null,""]
[81,null,null,null,null,null,null,null,null,"",null,null,"",null,null,"",null,null,"",null,null,"",null,null,"",null,null,"",null,null,"",null,null,"",null,null,null,null,null,"",null,null,"",null,null,"",null,null,"",null,null,null,null,null,null,null,null,null,null,""]
[82,null,null,null,null,null,null,null,null,"",null,null,"",null,null,"",null,null,"",null,null,"",null,null,"",null,null,"",null,null,"",null,null,"",null,null,null,null,null,"",null,null,"",null,null,"",null,null,"",null,null,null,null,null,null,null,null,null,null,""]
[83,null,null,null,null,null,null,null,null,"",null,null,"",null,null,"",null,null,"",null,null,"",null,null,"",null,null,"",null,null,"",null,null,"",null,null,null,null,null,"",null,null,"",null,null,"",null,null,"",null,null,null,null,null,null,null,null,null,null,""]
[84,null,null,null,null,null,null,null,null,"",null,null,"",null,null,"",null,null,"",null,null,"",null,null,"",null,null,"",null,null,"",null,null,"",null,null,null,null,null,"",null,null,"",null,null,"",null,null,"",null,null,null,null,null,null,null,null,null,null,""]
[85,null,null,null,null,null,null,null,null,"",null,null,"",null,null,"",null,null,"",null,null,"",null,null,"",null,null,"",null,null,"",null,null,"",null,null,null,null,null,"",null,null,"",null,null,"",null,null,"",null,null,null,null,null,null,null,null,null,null,""]
[86,null,null,null,null,null,null,null,null,"",null,null,"",null,null,"",null,null,"",null,null,"",null,null,"",null,null,"",null,null,"",null,null,"",null,null,null,null,null,"",null,null,"",null,null,"",null,null,"",null,null,null,null,null,null,null,null,null,null,""]
[87,null,null,null,null,null,null,null,null,"",null,null,"",null,null,"",null,null,"",null,null,"",null,null,"",null,null,"",null,null,"",null,null,"",null,null,null,null,null,"",null,null,"",null,null,"",null,null,"",null,null,null,null,null,null,null,null,null,null,""]
[88,null,null,null,null,null,null,null,null,"",null,null,"",null,null,"",null,null,"",null,null,"",null,null,"",null,null,"",null,null,"",null,null,"",null,null,null,null,null,"",null,null,"",null,null,"",null,null,"",null,null,null,null,null,null,null,null,null,null,""]
[89,null,null,null,null,null,null,null,null,"",null,null,"",null,null,"",null,null,"",null,null,"",null,null,"",null,null,"",null,null,"",null,null,"",null,null,null,null,null,"",null,null,"",null,null,"",null,null,"",null,null,null,null,null,null,null,null,null,null,""]
[90,null,null,null,null,null,null,null,null,"",null,null,"",null,null,"",null,null,"",null,null,"",null,null,"",null,null,"",null,null,"",null,null,"",null,null,null,null,null,"",null,null,"",null,null,"",null,null,"",null,null,null,null,null,null,null,null,null,null,""]

{"sheet":"Final","index":1,"n_rows":36,"n_cols":29,"rows_kept":36,"cut":false,"hidden":false,"merged":[[35,11,35,14],[35,15,35,19],[35,21,35,23],[34,11,34,14],[34,15,34,19],[34,21,34,23],[34,1,34,3],[35,1,35,3],[34,6,34,8],[35,6,35,8],[33,11,33,14],[33,15,33,19],[33,21,33,23],[32,11,32,14],[32,15,32,19],[32,21,32,23],[32,1,32,3],[33,1,33,3],[32,6,32,8],[33,6,33,8],[31,11,31,14],[31,15,31,19],[31,21,31,23],[30,11,30,14],[30,15,30,19],[30,21,30,23],[30,1,30,3],[31,1,31,3],[30,6,30,8],[31,6,31,8],[29,11,29,14],[29,15,29,19],[29,21,29,23],[28,11,28,14],[28,15,28,19],[28,21,28,23],[28,1,28,3],[29,1,29,3],[28,6,28,8],[29,6,29,8],[25,11,25,14],[25,15,25,19],[25,21,25,23],[24,11,24,14],[24,15,24,19],[24,21,24,23],[24,1,24,3],[25,1,25,3],[27,11,27,14],[27,15,27,19],[27,21,27,23],[26,11,26,14],[26,15,26,19],[26,21,26,23],[26,1,26,3],[27,1,27,3],[24,6,24,8],[25,6,25,8],[26,6,26,8],[27,6,27,8],[22,11,22,14],[22,15,22,19],[22,21,22,23],[20,11,20,14],[20,15,20,19],[20,21,20,23],[22,1,22,3],[23,11,23,14],[23,15,23,19],[23,21,23,23],[23,1,23,3],[21,11,21,14],[21,15,21,19],[21,1,21,3],[21,21,21,23],[21,6,21,8],[22,6,22,8],[23,6,23,8],[18,11,18,14],[18,15,18,19],[18,21,18,23],[19,11,19,14],[19,15,19,19],[19,21,19,23],[18,1,18,3],[19,1,19,3],[20,1,20,3],[18,6,18,8],[19,6,19,8],[20,6,20,8],[16,11,16,14],[16,15,16,19],[16,21,16,23],[17,11,17,14],[17,15,17,19],[17,21,17,23],[16,1,16,3],[17,1,17,3],[16,6,16,8],[17,6,17,8],[15,11,15,14],[15,15,15,19],[15,21,15,23],[14,11,14,14],[14,15,14,19],[14,21,14,23],[14,1,14,3],[15,1,15,3],[14,6,14,8],[15,6,15,8],[13,11,13,14],[13,15,13,19],[13,21,13,23],[12,11,12,14],[12,15,12,19],[12,21,12,23],[12,1,12,3],[13,1,13,3],[12,6,12,8],[13,6,13,8],[11,11,11,14],[11,15,11,19],[11,21,11,23],[10,11,10,14],[10,15,10,19],[10,21,10,23],[10,1,10,3],[11,1,11,3],[10,6,10,8],[11,6,11,8],[9,11,9,14],[9,15,9,19],[9,21,9,23],[8,11,8,14],[8,15,8,19],[8,21,8,23],[8,1,8,3],[9,1,9,3],[8,6,8,8],[9,6,9,8],[7,11,7,14],[7,15,7,19],[7,21,7,23],[6,11,6,14],[6,15,6,19],[6,21,6,23],[6,1,6,3],[7,1,7,3],[6,6,6,8],[7,6,7,8],[3,0,3,9],[3,10,3,18],[3,20,3,29],[4,0,5,0],[4,10,5,10],[4,15,5,19],[4,20,5,20],[4,4,5,4],[4,9,5,9],[4,5,5,5],[4,24,4,29],[5,24,5,25],[5,26,5,27],[5,28,5,29],[5,1,5,3],[5,6,5,8],[5,11,5,14],[5,21,5,23],[2,5,2,6],[2,7,2,9],[2,15,2,16],[2,17,2,19],[2,25,2,26],[2,27,2,29],[0,0,0,9],[0,10,0,19],[0,20,0,29],[1,0,1,9],[1,10,1,19],[1,20,1,29]]}
["قائمة الطلبة الناجحين ",null,null,null,null,null,null,null,null,null,"قائمة الطلبة الراسبين و المتسربون ",null,null,null,null,null,null,null,null,null,"قائمة مباحث الاكمال"]
[]
[null,"الصف :",null,"الشعبة:",null,"مربي الصف :",null,null,null,null,null,"الصف :",null,"الشعبة:",null,"مربي الصف :",null,null,null,null,null,"الصف :",null,"الشعبة:",null,"مربي الصف :"]
[]
["الرقم",null,null,null,"ملاحظات","الرقم",null,null,null,"ملاحظات","الرقم",null,null,null,null,"ملاحظات",null,null,null,null,"الرقم",null,null,null,"مباحث الاكمال"]
[null,"اسم الطالب",null,null,null,null,"اسم الطالب",null,null,null,null,"اسم الطالب",null,null,null,null,null,null,null,null,null,"اسم الطالب",null,null,"الاول",null,"الثاني",null,"الثالث"]
[1,"محمد  خالد حسن 1",null,null,10,31,"محمد  خالد حسن 39",null,null,60,1,"محمد  خالد حسن 7",null,null,null,"انقطع",null,null,null,null,1,"محمد  خالد حسن 1",null,null,"الحاسوب"]
[2,"محمد  خالد حسن 2",null,null,20,32,"محمد  خالد حسن 40",null,null,"",2,"محمد  خالد حسن 8",null,null,null,"راسب بسبب تجاوز نسبة الغياب المقررة ",null,null,null,null,2,"محمد  خالد حسن 2",null,null,"الاجتماعيات",null,"الحاسوب"]
[3,"محمد  خالد حسن 3",null,null,30,33,"محمد  خالد حسن 41",null,null,63,3,"محمد  خالد حسن 11",null,null,null,"راسب بسبب تجاوز نسبة الغياب المقررة ",null,null,null,null,3,"محمد  خالد حسن 3",null,null,"التربية المهنية",null,"الحاسوب"]
[4,"محمد  خالد حسن 4",null,null,55,34,"محمد  خالد حسن 42",null,null,"",4,"محمد  خالد حسن 16",null,null,null,"راسب بسبب تجاوز نسبة الغياب المقررة ",null,null,null,null,4,"محمد  خالد حسن 6",null,null,"التربية المهنية",null,"الحاسوب",null,"الثقافة المالية "]
[5,"محمد  خالد حسن 5",null,null,84,35,"محمد  خالد حسن 43",null,null,"",5,"محمد  خالد حسن 19",null,null,null,"راســــــــــــــــــــــــب",null,null,null,null,5,"محمد  خالد حسن 12",null,null,"الرياضيات",null,"التربية المهنية",null,"الحاسوب"]
[6,"محمد  خالد حسن 9",null,null,68,36,"محمد  خالد حسن 44",null,null,79,6,"محمد  خالد حسن 27",null,null,null,"راســــــــــــــــــــــــب",null,null,null,null,6,"محمد  خالد حسن 15",null,null,"الحاسوب"]
[7,"محمد  خالد حسن 10",null,null,86,37,"محمد  خالد حسن 45",null,null,73,7,"محمد  خالد حسن 30",null,null,null,"راسب بسبب تجاوز نسبة الغياب المقررة ",null,null,null,null,7,"محمد  خالد حسن 18",null,null,"الحاسوب"]
[8,"محمد  خالد حسن 12",null,null,11,38,"محمد  خالد حسن 46",null,null,1,8,null,null,null,null,null,null,null,null,null,8,"محمد  خالد حسن 26",null,null,"التربية المهنية",null,"الحاسوب"]
[9,"محمد  خالد حسن 13",null,null,63,39,"محمد  خالد حسن 47",null,null,1,9,null,null,null,null,null,null,null,null,null,9,"محمد  خالد حسن 29",null,null,"العلوم",null,"التربية المهنية",null,"الحاسوب"]
[10,"محمد  خالد حسن 14",null,null,71,40,"محمد  خالد حسن 48",null,null,1,10,null,null,null,null,null,null,null,null,null,10,"محمد  خالد حسن 32",null,null,"الحاسوب"]
[11,"محمد  خالد حسن 15",null,null,"",41,null,null,null,null,11,null,null,null,null,null,null,null,null,null,11,"محمد  خالد حسن 33",null,null,"الحاسوب"]
[12,"محمد  خالد حسن 17",null,null,71,42,null,null,null,null,12,null,null,null,null,null,null,null,null,null,12,"محمد  خالد حسن 34",null,null,"التربية المهنية"]
[13,"محمد  خالد حسن 18",null,null,"",43,null,null,null,null,13,null,null,null,null,null,null,null,null,null,13,"محمد  خالد حسن 36",null,null,"العلوم",null,"الحاسوب"]
[14,"محمد  خالد حسن 20",null,null,56,44,null,null,null,null,14,null,null,null,null,null,null,null,null,null,14,"محمد  خالد حسن 40",null,null,"الحاسوب"]
[15,"محمد  خالد حسن 21",null,null,67,45,null,null,null,null,15,null,null,null,null,null,null,null,null,null,15,"محمد  خالد حسن 42",null,null,"الحاسوب"]
[16,"محمد  خالد حسن 22",null,null,67,46,null,null,null,null,16,null,null,null,null,null,null,null,null,null,16,"محمد  خالد حسن 43",null,null,"الاجتماعيات",null,"الحاسوب"]
[17,"محمد  خالد حسن 23",null,null,66,47,null,null,null,null,17,null,null,null,null,null,null,null,null,null,17]
[18,"محمد  خالد حسن 24",null,null,62,48,null,null,null,null,18,null,null,null,null,null,null,null,null,null,18]
[19,"محمد  خالد حسن 25",null,null,83,49,null,null,null,null,19,null,null,null,null,null,null,null,null,null,19]
[20,"محمد  خالد حسن 26",null,null,"",50,null,null,null,null,20,null,null,null,null,null,null,null,null,null,20]
[21,"محمد  خالد حسن 28",null,null,68,51,null,null,null,null,21,null,null,null,null,null,null,null,null,null,21]
[22,"محمد  خالد حسن 29",null,null,"",52,null,null,null,null,22,null,null,null,null,null,null,null,null,null,22]
[23,"محمد  خالد حسن 31",null,null,64,53,null,null,null,null,23,null,null,null,null,null,null,null,null,null,23]
[24,"محمد  خالد حسن 32",null,null,"",54,null,null,null,null,24,null,null,null,null,null,null,null,null,null,24]
[25,"محمد  خالد حسن 33",null,null,"",55,null,null,null,null,25,null,null,null,null,null,null,null,null,null,25]
[26,"محمد  خالد حسن 34",null,null,"",56,null,null,null,null,26,null,null,null,null,null,null,null,null,null,26]
[27,"محمد  خالد حسن 35",null,null,68,57,null,null,null,null,27,null,null,null,null,null,null,null,null,null,27]
[28,"محمد  خالد حسن 36",null,null,"",58,null,null,null,null,28,null,null,null,null,null,null,null,null,null,28]
[29,"محمد  خالد حسن 37",null,null,59,59,null,null,null,null,29,null,null,null,null,null,null,null,null,null,29]
[30,"محمد  خالد حسن 38",null,null,71,60,null,null,null,null,30,null,null,null,null,null,null,null,null,null,30]

{"sheet":"الاوائل","index":2,"n_rows":42,"n_cols":3,"rows_kept":42,"cut":false,"hidden":false,"merged":[]}
["قائمة الطلبة الناجحين "]
[null,"اسم الطالب","ملاحظات"]
[null,"محمد  خالد حسن 15",""]
[null,"محمد  خالد حسن 18",""]
[null,"محمد  خالد حسن 26",""]
[null,"محمد  خالد حسن 29",""]
[null,"محمد  خالد حسن 32",""]
[null,"محمد  خالد حسن 33",""]
[null,"محمد  خالد حسن 34",""]
[null,"محمد  خالد حسن 36",""]
[null,"محمد  خالد حسن 40",""]
[null,"محمد  خالد حسن 42",""]
[null,"محمد  خالد حسن 43",""]
[null,"محمد  خالد حسن 10",86]
[null,"محمد  خالد حسن 5",84]
[null,"محمد  خالد حسن 25",83]
[null,"محمد  خالد حسن 44",79]
[null,"محمد  خالد حسن 45",73]
[null,"محمد  خالد حسن 14",71]
[null,"محمد  خالد حسن 17",71]
[null,"محمد  خالد حسن 38",71]
[null,"محمد  خالد حسن 9",68]
[null,"محمد  خالد حسن 28",68]
[null,"محمد  خالد حسن 35",68]
[null,"محمد  خالد حسن 21",67]
[null,"محمد  خالد حسن 22",67]
[null,"محمد  خالد حسن 23",66]
[null,"محمد  خالد حسن 31",64]
[null,"محمد  خالد حسن 13",63]
[null,"محمد  خالد حسن 41",63]
[null,"محمد  خالد حسن 24",62]
[null,"محمد  خالد حسن 39",60]
[null,"محمد  خالد حسن 37",59]
[null,"محمد  خالد حسن 20",56]
[null,"محمد  خالد حسن 4",55]
[null,"محمد  خالد حسن 3",30]
[null,"محمد  خالد حسن 2",20]
[null,"محمد  خالد حسن 12",11]
[null,"محمد  خالد حسن 1",10]
[null,"محمد  خالد حسن 46",1]
[null,"محمد  خالد حسن 47",1]
[null,"محمد  خالد حسن 48",1]